bitfinex/quotes_BTCUSD_20251208
["timestamp","ask_amount","ask_price","bid_price","bid_amount"]
[1765153823672,0.05115,90275.0,90274.0,0.0003926]
[1765153823894,0.02679,90275.0,90274.0,0.0003926]
[1765153824436,0.05115,90275.0,90274.0,0.0003926]
[1765153827046,0.02679,90275.0,90274.0,0.0003926]
[1765153827640,0.05115,90275.0,90274.0,0.0003926]
[1765153828022,0.02679,90275.0,90274.0,0.0003926]
[1765153828449,0.22154506,90276.0,90274.0,0.0003926]
[1765153828450,0.01127,90280.0,90275.0,0.01107726]
[1765153828650,0.23280489,90280.0,90275.0,0.01107726]
[1765153829475,0.23706293,90276.0,90274.0,0.0003926]
[1765153829679,0.01552,90275.0,90274.0,0.0003926]
[1765153829886,0.03988,90275.0,90274.0,0.0003926]
[1765153831060,0.03988,90275.0,90274.0,0.0103926]
[1765153831261,0.03988,90275.0,90274.0,0.0113926]
[1765153841382,0.22154293,90276.0,90274.0,0.0113926]
[1765153841383,0.01107701,90277.0,90274.0,0.03831998]
[1765153841585,0.23261963,90277.0,90274.0,0.0272426]
[1765153841764,0.23261963,90277.0,90274.0,0.0113926]
[1765153841963,0.23784527,90275.0,90274.0,0.0113926]
[1765153842190,0.23784527,90275.0,90274.0,0.0013926]
[1765153842395,0.26082527,90275.0,90274.0,0.0013926]
[1765153842640,0.26082527,90275.0,90274.0,0.0003926]
[1765153843312,0.26082527,90275.0,90274.0,0.0103926]
[1765153844563,0.26082527,90275.0,90274.0,0.0113926]
[1765153849553,0.23784527,90275.0,90274.0,0.0113926]
[1765153850179,0.22154527,90275.0,90274.0,0.0113926]
[1765153850403,0.23261963,90277.0,90274.0,0.0113926]
[1765153850404,0.22154491,90276.0,90274.0,0.0113926]
[1765153850606,0.22154527,90275.0,90274.0,0.0113926]
[1765153851692,0.22154527,90275.0,90274.0,0.0103926]
[1765153853102,0.23261963,90277.0,90274.0,0.0103926]
[1765153853310,0.23261963,90277.0,90274.0,0.0113926]
[1765153853529,0.02264677,90279.0,90274.0,0.02246998]
[1765153853757,0.01107689,90278.0,90274.0,0.02246998]
[1765153853932,0.23261826,90277.0,90274.0,0.0013926]
[1765153854149,0.22154495,90276.0,90274.0,0.0013926]
[1765153854876,0.22154495,90276.0,90274.0,0.0003926]
[1765153855554,0.22354495,90276.0,90274.0,0.0003926]
[1765153855729,0.22654495,90276.0,90274.0,0.0003926]
[1765153859402,0.005,90276.0,90274.0,0.0003926]
[1765153859610,0.005,90276.0,90275.0,0.33951826]
[1765153859850,0.005,90276.0,90275.0,0.66251826]
[1765153860612,0.003,90276.0,90275.0,0.66251826]
[1765153860747,0.01107505,90293.0,90289.0,0.09579853]
[1765153860964,0.01107505,90293.0,90292.0,0.00615]
[1765153861166,0.02234468,90296.0,90293.0,0.01107505]
[1765153861374,0.01127,90296.0,90293.0,0.01107505]
[1765153861569,0.01107444,90298.0,90293.0,0.01107505]
[1765153861769,0.003,90293.0,90292.0,0.00615]
[1765153862073,0.003,90293.0,90285.0,0.03961629]
[1765153862074,0.22151828,90286.0,90285.0,0.03961629]
[1765153862446,0.22151828,90286.0,90281.0,0.34003123]
[1765153862447,0.22152319,90284.0,90283.0,0.08004299]
[1765153864383,0.22152319,90284.0,90283.0,0.09404299]
[1765153864558,0.26145319,90284.0,90283.0,0.014]
[1765153864783,0.26145319,90284.0,90283.0,0.017]
[1765153865400,0.01188,90285.0,90283.0,0.014]
[1765153865552,0.23259419,90286.0,90282.0,0.0110764]
[1765153865764,0.008,90284.0,90283.0,0.001]
[1765153866185,0.01107603,90285.0,90281.0,0.01392652]
[1765153866383,0.01107615,90284.0,90281.0,0.01392652]
[1765153866808,0.23259419,90286.0,90282.0,0.0110764]
[1765153866809,0.01107591,90286.0,90282.0,0.0110764]
[1765153867165,0.016,90284.0,90282.0,0.0110764]
[1765153867370,0.01107591,90286.0,90282.0,0.0110764]
[1765153867548,0.008,90285.0,90283.0,0.001]
[1765153867999,0.22153791,90278.0,90277.0,0.06252299]
[1765153868209,0.22154282,90276.0,90274.0,0.0003926]
[1765153868408,0.01504,90275.0,90274.0,0.0003926]
[1765153868540,0.03993,90275.0,90274.0,0.0003926]
[1765153870491,0.22154282,90276.0,90274.0,0.0003926]
[1765153870695,0.22354282,90276.0,90274.0,0.0013926]
[1765153871146,0.22154282,90276.0,90274.0,0.0013926]
[1765153871344,0.24643282,90276.0,90274.0,0.0103926]
[1765153871512,0.24643282,90276.0,90274.0,0.0003926]
[1765153871846,0.24943282,90276.0,90274.0,0.0003926]
[1765153872134,0.01545,90275.0,90274.0,0.0003926]
[1765153873576,0.01545,90275.0,90274.0,0.0103926]
[1765153873793,0.01545,90275.0,90274.0,0.0113926]
[1765153874206,0.03911,90275.0,90274.0,0.0113926]
[1765153876758,0.01545,90275.0,90274.0,0.0113926]
[1765153877278,0.03911,90275.0,90274.0,0.0113926]
[1765153878120,0.05132,90275.0,90274.0,0.0113926]
[1765153878990,0.02766,90275.0,90274.0,0.0113926]
[1765153879701,0.05132,90275.0,90274.0,0.0113926]
[1765153880247,0.01221,90275.0,90274.0,0.0113926]
[1765153884421,0.05132,90275.0,90274.0,0.0113926]
[1765153886684,0.02766,90275.0,90274.0,0.0113926]
[1765153886887,0.05132,90275.0,90274.0,0.0113926]
[1765153887412,0.22154486,90276.0,90274.0,0.0113926]
[1765153887758,0.01107701,90277.0,90274.0,0.0113926]
[1765153888359,0.01107677,90279.0,90274.0,0.24301581]
[1765153888786,0.01107677,90279.0,90274.0,0.23301581]
[1765153889271,0.22151327,90289.0,90274.0,0.23301581]
[1765153889272,0.005,90276.0,90275.0,0.11031148]
[1765153889630,0.003,90276.0,90275.0,0.47303148]
[1765153889916,0.01107468,90296.0,90291.0,0.23258131]
[1765153890442,0.01107468,90296.0,90292.0,0.00899]
[1765153890940,0.01107456,90297.0,90293.0,0.01107505]
[1765153891290,0.01107456,90297.0,90294.0,0.01107493]
[1765153891491,0.22332566,90304.0,90300.0,0.01107419]
[1765153891492,0.00185148,90304.0,90300.0,0.01107419]
[1765153891698,0.01292518,90304.0,90303.0,0.01069]
[1765153892616,0.04092518,90304.0,90303.0,0.01069]
[1765153892817,0.02202941,90304.0,90303.0,0.01069]
[1765153892993,0.01302941,90304.0,90303.0,0.01069]
[1765153893192,0.01302941,90304.0,90303.0,0.10040299]
[1765153893193,0.00195571,90304.0,90303.0,0.10040299]
[1765153893398,0.00195571,90304.0,90303.0,0.10240299]
[1765153894666,0.00034284,90304.0,90303.0,0.10240299]
[1765153895390,0.00034284,90304.0,90303.0,0.14428299]
[1765153895810,0.00034284,90304.0,90303.0,0.46728299]
[1765153896068,0.00034284,90304.0,90303.0,0.50684239]
[1765153896308,0.00034284,90304.0,90303.0,0.46728299]
[1765153896737,0.00034284,90304.0,90303.0,0.5266221]
[1765153897182,0.00034284,90304.0,90303.0,0.46728299]
[1765153897622,0.00034284,90304.0,90303.0,0.46528299]
[1765153897929,0.00034284,90304.0,90303.0,0.45728299]
[1765153898287,0.00034284,90304.0,90303.0,0.47128299]
[1765153898489,2.84e-06,90304.0,90303.0,0.47128299]
[1765153898909,2.84e-06,90304.0,90303.0,0.53038906]
[1765153899257,2.84e-06,90304.0,90303.0,0.47128299]
[1765153901256,2.84e-06,90304.0,90303.0,0.78265799]
[1765153901929,0.0004,90330.0,90329.0,0.62913582]
[1765153902129,0.00050422,90330.0,90329.0,0.69237582]
[1765153902515,0.00050422,90330.0,90329.0,0.69680754]
[1765153903238,0.00050422,90330.0,90329.0,0.67928754]
[1765153903379,0.00050422,90330.0,90329.0,0.70880754]
[1765153904606,0.00050422,90330.0,90329.0,0.69680754]
[1765153904807,0.00050422,90330.0,90329.0,0.69980754]
[1765153905220,0.00050422,90330.0,90329.0,0.70280754]
[1765153907554,0.00127942,90330.0,90329.0,0.70280754]
[1765153908311,0.00127942,90330.0,90329.0,0.32040754]
[1765153908460,0.00127942,90330.0,90329.0,0.11651471]
[1765153908681,0.00127942,90330.0,90329.0,0.11208299]
[1765153908850,0.00127942,90330.0,90329.0,0.12911422]
[1765153909052,0.00127942,90330.0,90329.0,0.35052705]
[1765153909252,0.00127942,90330.0,90329.0,0.12911422]
[1765153910497,0.00127942,90330.0,90329.0,0.40136299]
[1765153910671,0.00127942,90330.0,90329.0,0.39152299]
[1765153911406,0.00127942,90330.0,90329.0,0.62913582]
[1765153916747,0.00127942,90330.0,90329.0,0.40772299]
[1765153917150,0.00127942,90330.0,90329.0,0.62913582]
[1765153917889,0.00127942,90330.0,90329.0,0.64881582]
[1765153918324,0.01660942,90330.0,90329.0,0.39152299]
[1765153918525,0.01822229,90330.0,90329.0,0.006]
[1765153918730,0.04125229,90330.0,90329.0,0.006]
[1765153919142,0.04125229,90330.0,90329.0,0.003]
[1765153919359,0.011071,90326.0,90323.0,0.01752]
[1765153919692,0.011071,90326.0,90312.0,0.39536299]
[1765153919693,0.01107235,90315.0,90312.0,0.03843272]
[1765153920164,0.01107235,90315.0,90312.0,0.01752]
[1765153920165,0.23251997,90315.0,90312.0,0.01752]
[1765153920363,0.23251997,90315.0,90307.0,0.00984]
[1765153920364,0.01107297,90310.0,90307.0,0.00984]
[1765153920862,0.22146186,90309.0,90308.0,0.06252299]
[1765153921239,0.23254218,90307.0,90305.0,0.06252299]
[1765153921426,0.22147156,90306.0,90305.0,0.06252299]
[1765153921961,0.01107346,90306.0,90304.0,0.06252299]
[1765153922112,0.01107333,90307.0,90304.0,0.07359669]
[1765153922314,0.03474,90319.0,90303.0,0.01752]
[1765153922315,0.01107174,90320.0,90316.0,0.01107223]
[1765153922648,0.22142023,90326.0,90320.0,0.01107174]
[1765153922850,0.01107088,90327.0,90326.0,0.00984]
[1765153923385,0.00211709,90330.0,90327.0,0.23248846]
[1765153923588,0.00211709,90330.0,90329.0,0.23690283]
[1765153923843,0.00050422,90330.0,90329.0,0.29942582]
[1765153924183,0.00050422,90330.0,90329.0,0.34130582]
[1765153924391,0.00050422,90330.0,90329.0,0.64210582]
[1765153924591,0.00350422,90330.0,90329.0,0.66430582]
[1765153924774,0.00050422,90330.0,90329.0,0.66430582]
[1765153925182,0.00350422,90330.0,90329.0,0.66430582]
[1765153925383,0.00127942,90330.0,90329.0,0.66530582]
[1765153925822,0.00127942,90330.0,90329.0,0.62242582]
[1765153926019,0.00427942,90330.0,90329.0,0.64462582]
[1765153926339,0.00427942,90330.0,90329.0,0.66730582]
[1765153926699,0.00427942,90330.0,90329.0,0.66430582]
[1765153926900,0.00427942,90330.0,90329.0,0.66630582]
[1765153927372,0.00127942,90330.0,90329.0,0.66630582]
[1765153927578,0.00427942,90330.0,90329.0,0.66630582]
[1765153928501,0.00427942,90330.0,90329.0,0.72526224]
[1765153928979,0.00427942,90330.0,90329.0,0.66630582]
[1765153929205,0.00427942,90330.0,90329.0,0.66430582]
[1765153929686,0.00427942,90330.0,90329.0,0.66930582]
[1765153930354,0.00127942,90330.0,90329.0,0.72849501]
[1765153930795,0.0002,90350.0,90349.0,0.30608681]
[1765153931052,0.0002,90350.0,90349.0,0.33909681]
[1765153931328,0.0002,90350.0,90349.0,0.68177681]
[1765153931581,0.0002,90350.0,90349.0,0.69284279]
[1765153932043,0.0002,90350.0,90349.0,0.69384279]
[1765153932292,0.0032,90350.0,90349.0,0.69384279]
[1765153932498,0.0032,90350.0,90349.0,0.69284279]
[1765153932843,0.0032,90350.0,90349.0,0.73529279]
[1765153933248,0.0032,90350.0,90349.0,0.69584279]
[1765153933454,0.0002,90350.0,90349.0,0.69584279]
[1765153933658,0.0022,90350.0,90349.0,0.69584279]
[1765153933856,0.0022,90350.0,90349.0,1.39859779]
[1765153934169,0.0002,90350.0,90349.0,1.33642279]
[1765153934552,4.012e-05,90354.0,90349.0,1.33942279]
[1765153934773,0.0002,90370.0,90369.0,0.62903782]
[1765153934947,0.0003176,90370.0,90369.0,0.66195782]
[1765153935146,0.0003176,90370.0,90369.0,0.68163782]
[1765153935374,0.0003176,90370.0,90369.0,0.69270123]
[1765153936168,0.0003176,90370.0,90369.0,0.69470123]
[1765153937404,0.0002,90390.0,90379.0,0.62901333]
[1765153937609,0.00059184,90380.0,90379.0,0.66193333]
[1765153937784,0.00208158,90380.0,90379.0,0.68161333]
[1765153938556,0.00208158,90380.0,90379.0,0.68261333]
[1765153938944,0.00508158,90380.0,90379.0,0.68261333]
[1765153939347,0.00508158,90380.0,90379.0,0.68161333]
[1765153939807,1.58e-06,90380.0,90379.0,0.68161333]
[1765153940012,0.0002,90390.0,90389.0,0.62898885]
[1765153940245,0.0002824,90390.0,90389.0,0.66190885]
[1765153940456,0.0002824,90390.0,90389.0,0.68158885]
[1765153941382,0.0002824,90390.0,90389.0,0.68258885]
[1765153942064,0.0032824,90390.0,90389.0,0.68258885]
[1765153942658,0.0032824,90390.0,90389.0,0.64286885]
[1765153942980,0.0032824,90390.0,90389.0,0.66506885]
[1765153943214,0.0032824,90390.0,90389.0,0.69365116]
[1765153944306,0.0032824,90390.0,90389.0,0.67613116]
[1765153944469,0.0032824,90390.0,90389.0,0.4548653]
[1765153944628,0.0032824,90390.0,90389.0,0.4723853]
[1765153945009,0.0032824,90390.0,90389.0,0.4548653]
[1765153945225,0.0032824,90390.0,90389.0,0.4527053]
[1765153945423,0.0032824,90390.0,90389.0,0.4723853]
[1765153945682,0.00358023,90390.0,90389.0,0.46132299]
[1765153946044,0.00358023,90390.0,90389.0,0.44164299]
[1765153946231,0.00358023,90390.0,90389.0,0.66290885]
[1765153946453,0.00358023,90390.0,90389.0,0.68258885]
[1765153946653,0.00358023,90390.0,90389.0,0.35958885]
[1765153946853,0.00358023,90390.0,90389.0,0.33990885]
[1765153947058,0.00358023,90390.0,90389.0,0.34206885]
[1765153947358,0.00358023,90390.0,90389.0,0.35958885]
[1765153948289,0.00358023,90390.0,90389.0,0.39538885]
[1765153949410,0.00358023,90390.0,90389.0,0.13692299]
[1765153949607,0.00358023,90390.0,90389.0,0.15444299]
[1765153951546,0.00358023,90390.0,90389.0,0.15192299]
[1765153951749,0.00358023,90390.0,90389.0,0.13224299]
[1765153951948,0.00358023,90390.0,90389.0,0.13692299]
[1765153952151,0.00358023,90390.0,90389.0,0.15444299]
[1765153953763,0.00358023,90390.0,90389.0,0.17412299]
[1765153954161,0.00358023,90390.0,90389.0,0.13832299]
[1765153954569,0.00358023,90390.0,90389.0,0.13824957]
[1765153954772,0.00358023,90390.0,90389.0,0.16044957]
[1765153955585,0.00358023,90390.0,90389.0,0.48344957]
[1765153955795,0.00358023,90390.0,90389.0,0.46132299]
[1765153956027,0.00358023,90390.0,90389.0,0.44164299]
[1765153956351,0.00358023,90390.0,90389.0,0.46132299]
[1765153958597,0.00358023,90390.0,90389.0,0.44380299]
[1765153958824,0.00358023,90390.0,90389.0,0.46132299]
[1765153959025,0.00358023,90390.0,90389.0,0.46128299]
[1765153960208,0.00358023,90390.0,90389.0,0.49708299]
[1765153963481,0.00358023,90390.0,90389.0,0.53644989]
[1765153964279,0.00358023,90390.0,90389.0,0.49708299]
[1765153966120,0.00358023,90390.0,90389.0,0.47960299]
[1765153966334,0.00358023,90390.0,90389.0,0.45520299]
[1765153966982,0.00358023,90390.0,90389.0,0.47740299]
[1765153968057,0.00358023,90390.0,90389.0,0.49708299]
[1765153969668,0.00358023,90390.0,90389.0,0.47740299]
[1765153970263,0.00358023,90390.0,90389.0,0.49708299]
[1765153971862,0.00358023,90390.0,90389.0,0.55613334]
[1765153973121,0.00358023,90390.0,90389.0,0.47740299]
[1765153973333,0.00358023,90390.0,90389.0,0.49708299]
[1765153973685,0.00358023,90390.0,90389.0,0.55613334]
[1765153973827,0.00358023,90390.0,90389.0,0.52033334]
[1765153974240,0.00358023,90390.0,90389.0,0.46128299]
[1765153975378,0.00358023,90390.0,90389.0,0.46096322]
[1765153977058,2.3e-07,90390.0,90389.0,0.46096322]
[1765153977776,2.3e-07,90390.0,90389.0,0.45996322]
[1765153977980,2.3e-07,90390.0,90389.0,0.49576322]
[1765153978183,2.3e-07,90390.0,90389.0,0.49776322]
[1765153980799,2.3e-07,90390.0,90389.0,0.58206586]
[1765153980947,2.3e-07,90390.0,90389.0,0.59954586]
[1765153981136,2.3e-07,90390.0,90389.0,0.66206885]
[1765153981332,2.3e-07,90390.0,90389.0,0.70005885]
[1765153981740,2.3e-07,90390.0,90389.0,0.75937166]
[1765153982171,2.3e-07,90390.0,90389.0,0.77905166]
[1765153982344,2.3e-07,90390.0,90389.0,0.68257885]
[1765153982529,2.3e-07,90390.0,90389.0,0.74189102]
[1765153982910,2.3e-07,90390.0,90389.0,0.70005885]
[1765153983839,2.3e-07,90390.0,90389.0,0.68393885]
[1765153984921,2.3e-07,90390.0,90389.0,0.62626885]
[1765153985090,2.3e-07,90390.0,90389.0,0.64846885]
[1765153986204,2.3e-07,90390.0,90389.0,0.66425885]
[1765153986412,2.3e-07,90390.0,90389.0,0.68393885]
[1765153987628,2.3e-07,90390.0,90389.0,0.62626885]
[1765153988055,2.3e-07,90390.0,90389.0,0.66425885]
[1765153988251,2.3e-07,90390.0,90389.0,0.68393885]
[1765153989635,2.3e-07,90390.0,90389.0,0.62626885]
[1765153989958,2.3e-07,90390.0,90389.0,0.64205885]
[1765153990800,2.3e-07,90390.0,90389.0,0.06452299]
[1765153991002,0.26161651,90390.0,90389.0,0.002]
[1765153992200,0.01106402,90383.0,90380.0,0.01106439]
[1765153992407,0.23234713,90382.0,90379.0,0.06252299]
[1765153992611,0.01106439,90380.0,90378.0,0.06252299]
[1765153992811,0.23235228,90380.0,90378.0,0.06252299]
[1765153993055,0.23234713,90382.0,90378.0,0.01106463]
[1765153994229,0.01106439,90380.0,90376.0,0.01106488]
[1765153994418,0.001,90383.0,90382.0,0.30600598]
[1765153994644,0.001,90383.0,90382.0,0.28380598]
[1765153995200,0.001,90383.0,90382.0,0.30600598]
[1765153995390,0.01169,90389.0,90387.0,0.28379323]
[1765153995590,0.01106231,90397.0,90393.0,0.0110628]
[1765153995804,0.03605,90401.0,90393.0,0.0110628]
[1765153995805,0.01126194,90400.0,90396.0,0.01106243]
[1765153996021,0.01126194,90400.0,90396.0,0.09578542]
[1765153996436,0.0002,90400.0,90399.0,0.06252299]
[1765153996644,0.0002,90400.0,90399.0,0.09881299]
[1765153996857,0.0002,90400.0,90399.0,0.07913299]
[1765153997277,0.0052,90400.0,90399.0,0.08897299]
[1765153997688,0.0052,90400.0,90399.0,0.07236299]
[1765153997903,0.0052,90400.0,90399.0,0.08472299]
[1765153997904,0.02036,90400.0,90399.0,0.08472299]
[1765153998117,0.0052,90400.0,90399.0,0.08472299]
[1765153998317,0.0002,90400.0,90399.0,0.08472299]
[1765153998715,0.0002,90400.0,90399.0,0.08572299]
[1765153998887,0.0002,90400.0,90399.0,0.09556299]
[1765153999323,0.0002,90400.0,90399.0,0.09456299]
[1765153999497,0.01636,90400.0,90399.0,0.01748]
[1765154000064,0.01536,90400.0,90399.0,0.01748]
[1765154000262,0.01536,90400.0,90396.0,0.06252299]
[1765154000263,0.01106219,90398.0,90396.0,0.06252299]
[1765154000462,0.01169,90397.0,90396.0,0.06252299]
[1765154000902,0.02846287,90397.0,90396.0,0.06252299]
[1765154001112,0.02846287,90397.0,90395.0,0.06252299]
[1765154001780,0.00161287,90397.0,90395.0,0.28377362]
[1765154002777,0.03933,90396.0,90393.0,0.06252299]
[1765154003100,0.02417,90396.0,90395.0,0.06252299]
[1765154003452,0.01330287,90397.0,90395.0,0.06252299]
[1765154003918,0.01330287,90397.0,90395.0,0.28377353]
[1765154004477,0.00161287,90397.0,90395.0,0.28377353]
[1765154006203,0.00161287,90397.0,90396.0,0.08472299]
[1765154006618,0.0002,90400.0,90399.0,0.08472299]
[1765154007400,0.0002,90400.0,90399.0,0.30596437]
[1765154010721,0.0002,90400.0,90399.0,0.28376437]
[1765154010924,0.0002,90400.0,90399.0,0.30596437]
[1765154011095,0.00049801,90400.0,90399.0,0.30596437]
[1765154011292,0.00049801,90400.0,90399.0,0.32257437]
[1765154011525,0.00049801,90400.0,90399.0,0.66525437]
[1765154011864,0.00049801,90400.0,90399.0,0.67694437]
[1765154012661,0.00049801,90400.0,90399.0,0.67894437]
[1765154012817,0.00049801,90400.0,90399.0,0.68194437]
[1765154014014,9e-05,90413.0,90409.0,0.6289399]
[1765154014222,9e-05,90413.0,90409.0,0.6827099]
[1765154015935,0.01125583,90450.0,90429.0,0.08472299]
[1765154016136,0.00031749,90430.0,90429.0,0.13849299]
[1765154016526,0.00031749,90430.0,90429.0,0.35966097]
[1765154017313,0.00031749,90430.0,90429.0,0.36066097]
[1765154017533,0.00031749,90430.0,90429.0,0.06352299]
[1765154017702,0.00031749,90430.0,90429.0,0.08200299]
[1765154018078,0.01709036,90430.0,90429.0,0.06652299]
[1765154018280,0.01709036,90430.0,90429.0,0.08400299]
[1765154018492,0.01709036,90430.0,90429.0,0.08200299]
[1765154018669,0.00193036,90430.0,90429.0,0.12081299]
[1765154018900,0.00293036,90430.0,90429.0,0.12081299]
[1765154019105,0.00293036,90430.0,90429.0,0.10220299]
[1765154019514,0.00293036,90430.0,90429.0,0.10161299]
[1765154019874,0.00282336,90430.0,90429.0,0.10161299]
[1765154020284,0.00221049,90430.0,90429.0,0.13584422]
[1765154020889,0.00121049,90430.0,90429.0,0.15552422]
[1765154021289,0.00221049,90430.0,90429.0,0.15552422]
[1765154021536,0.00221049,90430.0,90429.0,0.13584422]
[1765154021744,0.00121049,90430.0,90429.0,0.13584422]
[1765154022411,0.00121049,90430.0,90429.0,0.06252299]
[1765154022590,0.00121049,90430.0,90429.0,0.08000299]
[1765154022799,0.00121049,90430.0,90429.0,0.31677097]
[1765154023036,0.00121049,90430.0,90429.0,0.33897097]
[1765154023885,0.00121049,90430.0,90429.0,0.11780299]
[1765154024306,0.00121049,90430.0,90429.0,0.13748299]
[1765154024715,0.00121049,90430.0,90429.0,0.35865097]
[1765154025925,0.00121049,90430.0,90429.0,0.13748299]
[1765154026281,0.00121049,90430.0,90429.0,0.33897097]
[1765154026975,0.00121049,90430.0,90429.0,0.11780299]
[1765154028151,0.00121049,90430.0,90429.0,0.13748299]
[1765154028856,0.00121049,90430.0,90429.0,0.08000299]
[1765154029817,0.00121049,90430.0,90429.0,0.06252299]
[1765154029818,0.04063336,90430.0,90429.0,0.06252299]
[1765154030941,0.00382336,90430.0,90429.0,0.06252299]
[1765154031350,0.00382336,90430.0,90429.0,0.07955422]
[1765154032999,0.04163336,90430.0,90429.0,0.06252299]
[1765154033956,0.01911336,90430.0,90429.0,0.06252299]
[1765154035165,0.03087336,90430.0,90429.0,0.06252299]
[1765154035570,0.05339336,90430.0,90429.0,0.06252299]
[1765154036969,0.01105925,90422.0,90414.0,0.323]
[1765154037192,0.01682657,90415.0,90413.0,0.0358]
[1765154037391,0.01105998,90416.0,90415.0,0.06252299]
[1765154037619,0.22118755,90421.0,90415.0,0.06252299]
[1765154037819,0.01105937,90421.0,90418.0,0.06252299]
[1765154038217,0.03996,90419.0,90416.0,0.06252299]
[1765154038427,0.00050611,90417.0,90416.0,0.06252299]
[1765154039430,0.00050611,90417.0,90416.0,0.28372277]
[1765154039625,0.00150611,90417.0,90416.0,0.28372277]
[1765154040088,0.00150611,90417.0,90416.0,0.06252299]
[1765154041048,0.27372331,90417.0,90415.0,0.06252299]
[1765154041225,0.02843986,90417.0,90415.0,0.06252299]
[1765154041444,0.001,90417.0,90415.0,0.06252299]
[1765154041818,0.001,90417.0,90415.0,0.28372315]
[1765154042018,0.01135,90420.0,90418.0,0.28371738]
[1765154042653,0.01135,90426.0,90424.0,0.06252299]
[1765154042807,0.01135,90426.0,90425.0,0.22117777]
[1765154043008,0.01135,90426.0,90425.0,0.28370076]
[1765154044839,0.01135,90426.0,90425.0,0.06252299]
[1765154044840,0.01235,90426.0,90425.0,0.06252299]
[1765154045075,0.001,90426.0,90425.0,0.32177076]
[1765154045283,0.001,90426.0,90425.0,0.30590076]
[1765154045917,0.00193036,90430.0,90429.0,0.28369097]
[1765154046092,0.00193036,90430.0,90429.0,0.06252299]
[1765154046295,0.01831036,90430.0,90429.0,0.06252299]
[1765154047727,0.02031036,90430.0,90429.0,0.06252299]
[1765154047945,0.00482336,90430.0,90429.0,0.06252299]
[1765154048719,0.02120336,90430.0,90429.0,0.06252299]
[1765154048927,0.02120336,90430.0,90422.0,0.06252299]
[1765154048928,0.2211825,90424.0,90422.0,0.06252299]
[1765154049128,0.2211825,90424.0,90410.0,0.26427188]
[1765154049129,0.22118755,90421.0,90419.0,0.09271237]
[1765154049337,0.01105925,90422.0,90419.0,0.11580299]
[1765154049338,0.01638,90420.0,90419.0,0.11580299]
[1765154049849,0.23757,90420.0,90419.0,0.11580299]
[1765154050080,0.01105925,90422.0,90420.0,0.06252299]
[1765154050281,0.23224447,90422.0,90420.0,0.06252299]
[1765154050466,0.23224447,90422.0,90419.0,0.05328]
[1765154050684,0.01638,90421.0,90419.0,0.05328]
[1765154050844,0.23757,90420.0,90419.0,0.11580299]
[1765154051058,0.23757,90420.0,90419.0,0.11680299]
[1765154051231,0.23757,90420.0,90419.0,0.11580299]
[1765154051687,0.23757,90420.0,90419.0,0.11680299]
[1765154051888,0.23757,90420.0,90419.0,0.11580299]
[1765154052295,0.23757,90420.0,90419.0,0.08000299]
[1765154052527,0.01638,90420.0,90419.0,0.08000299]
[1765154053848,0.01638,90420.0,90419.0,0.08100299]
[1765154054096,0.01738,90420.0,90419.0,0.08000299]
[1765154054308,0.04054,90420.0,90419.0,0.08000299]
[1765154055002,0.26173,90420.0,90419.0,0.06252299]
[1765154055253,0.01106023,90414.0,90411.0,0.06252299]
[1765154055469,0.23226711,90414.0,90411.0,0.06252299]
[1765154055685,0.01232,90412.0,90411.0,0.06252299]
[1765154055895,0.02766,90412.0,90411.0,0.06252299]
[1765154056087,0.02766,90412.0,90411.0,0.28373501]
[1765154056338,0.02416,90420.0,90418.0,0.22119489]
[1765154056797,0.48736846,90430.0,90423.0,0.06252299]
[1765154056798,0.23222878,90429.0,90423.0,0.06252299]
[1765154057016,0.23222878,90429.0,90424.0,0.23223922]
[1765154057017,0.01105839,90429.0,90424.0,0.23223922]
[1765154057238,0.01105852,90428.0,90425.0,0.01105888]
[1765154057479,0.01105839,90429.0,90425.0,0.23223644]
[1765154057699,0.01298863,90430.0,90425.0,0.23223644]
[1765154057700,0.00193036,90430.0,90428.0,0.06252299]
[1765154057929,0.00193036,90430.0,90429.0,0.28369097]
[1765154059442,0.00031749,90430.0,90429.0,0.28369097]
[1765154059661,0.00031749,90430.0,90429.0,0.29911097]
[1765154059901,0.00031749,90430.0,90429.0,0.31879097]
[1765154060115,0.00031749,90430.0,90429.0,0.29911097]
[1765154060350,0.00231749,90430.0,90429.0,0.32131097]
[1765154061670,0.00231749,90430.0,90429.0,0.72313952]
[1765154061887,0.00231749,90430.0,90429.0,0.74629952]
[1765154062129,0.0002,90450.0,90429.0,0.74629952]
[1765154062130,0.0002,90450.0,90447.0,0.01105619]
[1765154062362,0.0002,90450.0,90449.0,0.65410207]
[1765154062793,0.0002,90450.0,90449.0,0.68483484]
[1765154063642,0.0002,90450.0,90449.0,0.70231484]
[1765154063852,0.0002,90450.0,90449.0,0.76539099]
[1765154064057,0.0002,90450.0,90449.0,0.76639099]
[1765154064274,0.0002,90450.0,90449.0,0.70731484]
[1765154065769,0.0002,90450.0,90449.0,0.67015484]
[1765154065982,0.0002,90450.0,90449.0,0.68763484]
[1765154066206,0.0002,90450.0,90449.0,0.63253484]
[1765154066420,0.0002,90450.0,90449.0,0.65001484]
[1765154066653,0.00168801,90450.0,90449.0,0.65001484]
[1765154066869,0.00168801,90450.0,90449.0,0.63796207]
[1765154067085,0.00330088,90450.0,90449.0,0.61748207]
[1765154067306,0.00330088,90450.0,90449.0,0.08100299]
[1765154068006,0.00168801,90450.0,90449.0,0.09642299]
[1765154068261,0.00168801,90450.0,90449.0,0.08100299]
[1765154068488,0.00168801,90450.0,90449.0,0.09642299]
[1765154069943,0.00168801,90450.0,90449.0,0.13830299]
[1765154070463,0.00168801,90450.0,90449.0,0.16041489]
[1765154071385,0.00168801,90450.0,90449.0,0.20070578]
[1765154071606,0.00168801,90450.0,90449.0,0.16141489]
[1765154072130,0.00168801,90450.0,90449.0,0.16041489]
[1765154072327,0.00168801,90450.0,90449.0,0.16191002]
[1765154072661,0.00168801,90450.0,90449.0,0.13730299]
[1765154072863,0.00168801,90450.0,90449.0,0.13930299]
[1765154073069,0.00168801,90450.0,90449.0,0.14630299]
[1765154073245,0.00168801,90450.0,90449.0,0.13730299]
[1765154073435,0.00168801,90450.0,90449.0,0.20070192]
[1765154073633,0.00168801,90450.0,90449.0,0.17010791]
[1765154073878,0.00168801,90450.0,90449.0,0.16141489]
[1765154074461,0.00168801,90450.0,90449.0,0.20069301]
[1765154075017,0.00168801,90450.0,90449.0,0.20269301]
[1765154075224,0.00168801,90450.0,90449.0,0.20069301]
[1765154075358,0.00168801,90450.0,90449.0,0.21069301]
[1765154075557,0.00168801,90450.0,90449.0,0.16141489]
[1765154076061,0.00168801,90450.0,90449.0,0.16741489]
[1765154076265,0.00168801,90450.0,90449.0,0.49041489]
[1765154076476,0.00168801,90450.0,90449.0,0.52537914]
[1765154076684,0.3,90482.0,90480.0,0.06252299]
[1765154076912,0.30200458,90482.0,90481.0,0.08472299]
[1765154077261,0.30200458,90482.0,90481.0,0.06252299]
[1765154077796,0.31834458,90482.0,90481.0,0.06252299]
[1765154078606,0.30300458,90482.0,90481.0,0.06252299]